bitfinex/quotes_ETHUSD_20250620
["timestamp","ask_amount","ask_price","bid_price","bid_amount"]
[1750407741818,25.4057,2563.5,2563.4,3.90106889]
[1750407742178,20.15181987,2563.5,2563.4,3.90106889]
[1750407742320,18.3638143,2563.5,2563.4,3.90106889]
[1750407742521,10.3638143,2563.5,2563.4,3.90106889]
[1750407742719,10.36380924,2563.5,2563.4,3.90106889]
[1750407742956,10.36380857,2563.5,2563.4,3.90106889]
[1750407743623,10.36407012,2563.5,2563.4,3.90106889]
[1750407744058,10.36414152,2563.5,2563.4,3.90106889]
[1750407744262,10.36414184,2563.5,2563.4,3.90106889]
[1750407744447,13.852356,2563.5,2562.5,3.90243902]
[1750407744764,10.0,2563.5,2563.3,3.90110645]
[1750407744951,0.36415075,2563.4,2563.3,3.90110645]
[1750407745152,11.788,2563.5,2563.4,3.90106889]
[1750407745323,12.15214305,2563.5,2563.4,3.90106889]
[1750407746162,12.15214305,2563.5,2563.3,3.90112972]
[1750407746163,12.15213974,2563.5,2563.3,3.90112972]
[1750407746344,0.36413974,2563.4,2563.2,0.8098]
[1750407746662,11.788,2563.5,2563.3,3.90122108]
[1750407746836,0.36455491,2563.4,2563.3,3.90122108]
[1750407747551,0.36455491,2563.4,2563.3,3.94072108]
[1750407747755,10.0,2563.5,2563.4,3.90106889]
[1750407747926,10.36460572,2563.5,2563.4,3.90106889]
[1750407748122,10.0,2563.5,2563.4,3.90106889]
[1750407748428,10.36460122,2563.5,2563.4,3.90106889]
[1750407748624,0.36460122,2563.5,2563.4,4.80572789]
[1750407748824,0.36460122,2563.5,2563.4,4.84473434]
[1750407749053,0.36460122,2563.5,2563.4,5.62443434]
[1750407749774,0.36460122,2563.5,2563.4,5.54592789]
[1750407750071,0.36460122,2563.5,2563.4,11.28276889]
[1750407750232,0.36460122,2563.5,2563.4,4.68076889]
[1750407750574,0.7957,2563.9,2563.5,3.90082531]
[1750407750575,8.0,2563.7,2563.5,3.90082531]
[1750407750732,0.36489451,2563.6,2563.5,3.90082531]
[1750407751062,0.36489963,2563.6,2563.5,3.90082531]
[1750407751262,0.36488777,2563.6,2563.2,0.7777]
[1750407751429,0.36488777,2563.5,2563.0,0.7777]
[1750407751631,0.36488777,2563.4,2563.1,3.90139343]
[1750407751938,8.0,2563.7,2563.5,3.90081625]
[1750407752171,8.0,2563.7,2563.6,3.90076454]
[1750407752172,18.0,2563.7,2563.6,3.90076454]
[1750407752371,18.36495662,2563.7,2563.6,3.90076454]
[1750407752537,10.36495662,2563.7,2563.6,3.90076454]
[1750407753073,10.36489882,2563.7,2563.6,3.90076454]
[1750407753577,10.36490235,2563.7,2563.6,3.90076454]
[1750407753927,10.3649009,2563.7,2563.6,3.90076454]
[1750407754346,10.36489916,2563.7,2563.6,3.90076454]
[1750407754984,10.36489916,2563.7,2563.5,3.9008889]
[1750407755269,0.36489916,2563.6,2563.5,3.9008889]
[1750407755452,0.36494669,2563.6,2563.4,3.90098365]
[1750407755654,0.36494669,2563.5,2563.4,3.90098365]
[1750407756126,0.36494669,2563.5,2563.3,3.90115807]
[1750407756331,0.36494669,2563.4,2563.3,3.90113777]
[1750407756559,0.36494669,2563.4,2563.1,3.90150225]
[1750407756775,21.96016366,2563.7,2563.3,3.90122108]
[1750407756930,0.36519977,2563.6,2563.5,3.90091671]
[1750407757273,18.0,2563.7,2563.6,3.90076454]
[1750407757468,18.36517319,2563.7,2563.6,3.90076454]
[1750407757654,10.36517319,2563.7,2563.6,3.90076454]
[1750407758056,0.36517319,2563.7,2563.6,3.94026454]
[1750407758264,0.36517319,2563.7,2563.6,4.80241267]
[1750407758444,8.0,2563.8,2563.7,3.90061239]
[1750407758650,18.0,2564.0,2563.9,3.90030812]
[1750407758850,18.36515459,2564.0,2563.9,3.64659235]
[1750407759553,10.0,2564.0,2563.9,3.64659235]
[1750407759874,10.36512322,2564.0,2563.9,3.64659235]
[1750407760384,10.0,2564.0,2563.9,3.64659235]
[1750407760556,18.36512569,2564.0,2563.9,3.64659235]
[1750407760754,18.3650666,2564.0,2563.8,3.90038542]
[1750407760944,0.3650666,2563.9,2563.8,3.90038542]
[1750407761449,18.0,2564.0,2563.9,3.90030812]
[1750407761890,18.36505955,2564.0,2563.9,3.90030812]
[1750407762078,18.36505951,2564.0,2563.8,3.90036811]
[1750407762245,0.36505951,2563.9,2563.8,3.90036811]
[1750407762646,0.36506035,2563.9,2563.8,3.90036811]
[1750407765285,8.0,2564.0,2563.8,3.90036811]
[1750407765286,8.0,2564.0,2563.9,3.90030812]
[1750407765487,8.36505387,2564.0,2563.9,3.90030812]
[1750407766091,8.36505387,2564.0,2563.9,4.68980812]
[1750407766391,8.36505387,2564.0,2563.9,6.20862574]
[1750407766695,0.36505387,2564.0,2563.9,6.20862574]
[1750407767174,0.36505387,2564.0,2563.9,6.24762356]
[1750407767491,0.36468978,2564.2,2564.1,3.9000039]
[1750407767669,0.36468978,2564.2,2564.1,10.4980039]
[1750407768398,0.36468978,2564.2,2563.9,2.30831762]
[1750407768399,0.7847,2564.4,2563.9,6.597]
[1750407768598,0.3646718,2564.2,2564.1,3.9000039]
[1750407768814,9.86911,2564.4,2564.2,3.8997685]
[1750407769020,0.36447782,2564.3,2564.2,3.8997685]
[1750407769709,0.36447782,2564.3,2564.2,10.4967685]
[1750407770379,8.7847,2564.6,2564.2,10.4967685]
[1750407770720,0.36446922,2564.5,2564.3,3.8996253]
[1750407770893,0.36446922,2564.4,2564.3,3.8996253]
[1750407771515,8.0,2564.6,2564.5,3.89939559]
[1750407771809,8.0,2564.7,2564.6,3.93874354]
[1750407771978,8.36400642,2564.7,2564.6,4.74284354]
[1750407772717,0.36400642,2564.7,2564.6,4.74284354]
[1750407772918,0.36400642,2564.9,2564.8,3.89893948]
[1750407773076,0.36400642,2564.9,2564.8,3.93843948]
[1750407774266,2.59289269,2565.1,2565.0,3.89863547]
[1750407774610,5.01618833,2565.1,2565.0,3.89863547]
[1750407775275,5.01583107,2565.1,2565.0,3.89863547]
[1750407775628,0.0565,2565.0,2564.6,0.8041]
[1750407775842,0.42015281,2565.0,2564.8,3.89893388]
[1750407776148,0.36366194,2565.0,2564.8,3.89893388]
[1750407776440,0.86524633,2565.0,2564.8,3.89893388]
[1750407776616,10.86524633,2565.0,2564.8,3.89893388]
[1750407776815,0.36366003,2564.9,2564.8,3.89893388]
[1750407777040,0.42016003,2564.9,2564.6,3.89915411]
[1750407777342,0.42016003,2564.9,2564.7,3.89908348]
[1750407777343,1.20354503,2564.9,2564.7,3.89908348]
[1750407777503,1.53425797,2564.8,2564.7,3.89908348]
[1750407777703,0.8398,2564.9,2564.7,3.89908348]
[1750407777930,0.36359161,2564.8,2564.7,3.89908348]
[1750407778354,0.36359161,2564.8,2564.7,10.49308348]
[1750407779009,0.36359161,2564.8,2564.7,6.594]
[1750407779241,0.36359161,2564.8,2564.7,10.49309151]
[1750407779463,0.36359161,2564.8,2564.7,10.49209151]
[1750407779751,0.36359161,2564.9,2564.8,3.89893948]
[1750407780334,2.79861115,2564.9,2564.8,3.89893948]
[1750407780536,0.36349535,2564.9,2564.8,3.89893948]
[1750407781817,10.0,2565.0,2564.9,3.89878747]
[1750407782100,8.0,2565.1,2565.0,3.89863547]
[1750407782305,18.0,2565.1,2565.0,3.89863547]
[1750407782505,10.36358374,2565.1,2565.0,3.89863547]
[1750407782740,10.36357937,2565.1,2565.0,3.89863547]
[1750407782913,10.36357254,2565.1,2565.0,3.89863547]
[1750407784041,10.0,2565.1,2565.0,3.89863547]
[1750407784244,10.36344676,2565.1,2565.0,3.89863547]
[1750407784629,10.36344832,2565.1,2565.0,3.89863547]
[1750407785822,10.36352537,2565.1,2565.0,3.89863547]
[1750407786348,10.36352537,2565.1,2565.0,10.48863547]
[1750407786656,10.0,2565.4,2565.3,3.89817955]
[1750407786862,13.07689658,2565.4,2565.3,3.89817955]
[1750407787024,13.07681108,2565.4,2565.3,3.89817955]
[1750407788244,0.36343108,2565.4,2565.3,3.89817955]
[1750407788648,10.0,2565.5,2565.4,3.89802759]
[1750407788964,10.0,2565.5,2565.0,6.59]
[1750407788965,10.36364003,2565.5,2565.3,3.89808034]
[1750407789262,0.36356894,2565.4,2565.3,3.8981059]
[1750407789630,0.36356894,2565.4,2565.2,3.8982482]
[1750407789828,0.0565,2565.4,2565.3,3.89817955]
[1750407790172,0.4200724,2565.4,2565.3,3.89817955]
[1750407790338,0.4200724,2565.4,2565.2,3.89824898]
[1750407790669,0.4200724,2565.4,2565.0,10.48852667]
[1750407790670,1.91798724,2565.4,2565.0,3.89852667]
[1750407790879,0.0565,2565.2,2565.1,6.589]
[1750407791179,0.42030136,2565.2,2565.1,3.89848348]
[1750407791381,0.42030804,2565.3,2565.1,3.89848348]
[1750407791588,0.0565,2565.3,2565.2,3.89833151]
[1750407791742,0.4203047,2565.3,2565.2,3.89833151]
[1750407791946,8.0565,2565.4,2565.3,3.89817955]
[1750407792270,8.42030449,2565.4,2565.3,3.89817955]
[1750407792483,8.36380449,2565.4,2565.3,3.89817955]
[1750407792669,0.36380449,2565.4,2565.2,3.89824086]
[1750407792871,0.36380449,2565.3,2565.2,3.89824086]
[1750407793393,0.36380449,2565.3,2565.1,3.89839822]
[1750407793546,0.36380449,2565.2,2565.1,3.89839822]
[1750407793891,0.36424965,2565.2,2565.1,3.89848348]
[1750407794511,0.36425094,2565.2,2565.0,3.89857614]
[1750407794686,0.36425094,2565.1,2565.0,3.89857614]
[1750407795047,1.17405094,2565.1,2564.9,6.587]
[1750407795241,0.36428899,2565.0,2564.9,10.4857792]
[1750407795767,0.36428899,2565.2,2565.1,3.89848348]
[1750407796081,0.36428899,2565.2,2564.9,6.587]
[1750407796283,0.36428899,2565.1,2564.9,10.48577605]
[1750407796479,0.0565,2565.2,2564.9,6.587]
[1750407796790,0.36428968,2565.1,2565.0,3.89863547]
[1750407797490,0.36461212,2565.1,2565.0,3.89863547]
[1750407798184,0.36461527,2565.1,2565.0,3.89863547]
[1750407799067,8.8663,2565.3,2565.1,3.89847847]
[1750407799407,0.42162135,2565.2,2565.0,3.89854977]
[1750407799699,0.36512135,2565.1,2565.0,3.89854977]
[1750407799899,0.0565,2565.1,2564.9,3.89870093]
[1750407800062,0.42152833,2565.0,2564.9,3.89870093]
[1750407800255,0.36512833,2565.0,2564.9,3.89870093]
[1750407800458,0.36512841,2565.0,2564.9,3.89870093]
[1750407801697,0.0564,2565.2,2564.9,3.89870093]
[1750407801897,0.36515442,2565.1,2564.9,3.89870093]
[1750407802065,0.36515442,2565.0,2564.9,3.89870093]
[1750407802464,0.0564,2565.2,2565.1,3.89848348]
[1750407802664,8.36529354,2565.2,2565.1,3.89848348]
[1750407803176,8.0,2565.2,2565.1,3.89848348]
[1750407803488,8.36528992,2565.2,2565.1,3.89848348]
[1750407803698,0.36528992,2565.2,2565.1,3.89848348]
[1750407803861,18.0,2565.3,2565.2,3.89833151]
[1750407804058,18.42170966,2565.3,2565.1,3.89840634]
[1750407804262,0.36531149,2565.2,2565.1,3.89840634]
[1750407805000,0.36534807,2565.2,2565.0,3.8985512]
[1750407805196,18.0564,2565.3,2565.0,3.8985512]
[1750407805367,0.36534984,2565.2,2565.0,3.8985512]
[1750407805563,0.42174984,2565.1,2565.0,3.8985512]
[1750407805794,0.42175341,2565.1,2565.0,3.8985512]
[1750407806111,0.42175346,2565.1,2565.0,3.8985512]
[1750407806472,0.36535346,2565.1,2565.0,3.8985512]
[1750407807115,0.36536978,2565.1,2565.0,3.8985512]
[1750407808112,18.0564,2565.3,2565.1,3.89841853]
[1750407808313,0.36554595,2565.2,2565.1,3.89841853]
[1750407808610,0.36554525,2565.2,2565.1,3.89841853]
[1750407808916,18.0564,2565.3,2565.1,3.89841853]
[1750407809078,0.36554683,2565.2,2565.1,3.89841853]
[1750407809279,0.36554686,2565.2,2565.1,3.89841853]
[1750407809475,0.36554686,2565.2,2565.0,3.8985616]
[1750407809681,0.36554686,2565.1,2565.0,3.8985616]
[1750407809880,0.36555531,2565.1,2564.9,3.89869042]
[1750407810094,18.0564,2565.3,2565.0,3.89856315]
[1750407810415,0.36555632,2565.2,2565.0,3.89856315]
[1750407810602,0.36555632,2565.1,2565.0,3.89856315]
[1750407811122,0.3655566,2565.1,2565.0,3.89856315]
[1750407811617,0.3655584,2565.1,2565.0,3.89856315]
[1750407812032,0.36556708,2565.1,2565.0,3.89856315]
[1750407812717,0.36556708,2565.1,2564.9,3.89870064]
[1750407812918,0.36556708,2565.0,2564.9,3.89870064]
[1750407813112,18.0,2565.3,2565.0,3.89860205]
[1750407813317,0.42204262,2565.2,2565.0,3.89860205]
[1750407813533,0.36564262,2565.1,2564.9,3.89870942]
[1750407813688,0.0564,2565.2,2565.0,3.89862661]
[1750407814036,18.0,2565.3,2565.2,3.89833151]
[1750407814188,18.0,2565.3,2565.2,3.2643636]
[1750407814521,18.36563474,2565.3,2565.2,3.89833151]
[1750407814726,10.0,2565.3,2565.2,3.89833151]
[1750407814887,10.36563902,2565.3,2565.1,3.89839993]
[1750407815087,0.36563902,2565.2,2565.1,3.89839993]
[1750407815325,10.0,2565.3,2565.2,3.89833151]
[1750407815523,10.36563127,2565.3,2565.2,3.89833151]
[1750407816287,10.42203127,2565.3,2565.1,3.89840422]
[1750407816490,0.36563127,2565.2,2565.1,3.89840422]
[1750407817846,0.36562047,2565.2,2565.1,3.89840422]
[1750407818802,10.0,2565.3,2565.1,3.89840422]
[1750407819001,0.36562439,2565.2,2565.1,3.89840422]
[1750407819200,10.0,2565.3,2565.1,3.89840422]
[1750407819422,0.36563318,2565.2,2565.1,3.89840422]
[1750407819600,0.36563317,2565.2,2565.1,3.89840422]
[1750407819790,0.36563457,2565.2,2565.1,3.89840422]
[1750407820696,8.0,2565.4,2565.3,3.89817955]
[1750407820907,18.36560819,2565.4,2565.3,3.89817955]
[1750407821106,18.36560819,2565.4,2565.2,4.67919708]
[1750407821107,18.36560819,2565.4,2565.2,4.67909239]
[1750407821429,0.36559382,2565.3,2565.2,4.67909239]
[1750407822142,0.36559382,2565.3,2565.2,3.89819239]
[1750407822616,10.0,2565.4,2565.3,3.89817955]
[1750407822818,10.36558981,2565.4,2565.3,3.89817955]
[1750407824445,0.36558981,2565.4,2565.3,13.45385414]
[1750407825451,10.0,2566.0,2565.9,3.89726801]
[1750407825599,10.36534789,2566.0,2565.9,3.89726801]
[1750407826735,18.7587,2566.3,2566.1,3.89689379]
[1750407826917,18.8151,2566.3,2566.1,3.89689379]
[1750407827117,21.7435467,2566.3,2566.1,3.89689379]
[1750407827342,21.7435467,2566.3,2566.0,3.89706625]
[1750407827640,25.58385251,2566.3,2565.9,3.89726801]
[1750407827842,0.0564,2566.2,2565.9,3.89726801]
[1750407828448,0.0564,2566.1,2565.8,3.89735519]
[1750407829024,0.0564,2566.1,2565.9,3.89721325]
[1750407829341,0.0564,2566.1,2565.8,3.89733966]
[1750407829649,0.0564,2566.2,2565.9,3.89720004]
[1750407830152,0.0564,2566.2,2565.9,3.89719697]
[1750407830338,0.0567,2566.2,2565.9,3.89719697]
[1750407830646,10.0,2566.1,2565.9,3.89719697]
[1750407831352,10.0567,2566.1,2565.8,3.89735972]
[1750407831940,10.0567,2566.1,2565.7,3.89744362]
[1750407832324,10.0,2566.1,2565.7,3.89749769]
[1750407832528,10.0567,2566.1,2565.7,3.89749769]
[1750407832929,12.94992507,2566.1,2565.7,3.89749769]
[1750407833124,12.94992507,2566.1,2565.5,0.7605]
[1750407833125,3.95382749,2566.0,2565.5,0.7605]
[1750407833334,19.46222507,2566.1,2565.5,3.89786529]
[1750407833335,0.0567,2565.8,2565.5,3.89786529]
[1750407833648,8.0567,2565.8,2565.6,3.89770609]
[1750407833850,8.0567,2565.8,2565.4,3.89787797]
[1750407834229,8.0567,2565.8,2565.5,3.89786756]
[1750407834625,8.0567,2565.8,2565.4,3.89793824]
[1750407834838,8.0567,2565.8,2565.4,3.89799622]
[1750407835015,3.89763512,2565.7,2565.2,4.68896141]
[1750407835222,0.0567,2565.7,2565.2,4.6889848]
[1750407835522,0.0567,2565.7,2565.3,3.89809894]
[1750407835760,0.0567,2565.7,2565.4,3.8979971]
[1750407836117,9.27743788,2565.8,2565.5,3.89785461]
[1750407836348,13.23156812,2565.8,2565.4,3.89794033]
[1750407836560,9.33413788,2565.8,2565.4,3.89794033]
[1750407836762,8.0567,2565.8,2565.5,3.89783349]
[1750407837065,8.0567,2565.8,2565.2,7.48291581]
[1750407837066,8.0,2565.8,2565.6,3.89764561]
[1750407837220,8.0,2565.8,2565.7,3.89757181]
[1750407837619,1.77,2566.0,2565.7,3.89757181]
[1750407837950,20.28252507,2566.1,2565.7,3.89757181]
[1750407838153,20.28252507,2566.1,2565.6,3.89763081]
[1750407838154,24.17950702,2566.1,2565.6,3.89763081]
[1750407838545,8.0,2566.0,2565.7,3.89755259]
[1750407838878,10.0,2565.9,2565.7,3.89755259]
[1750407839233,10.0,2565.9,2565.8,3.8974199]
[1750407839433,10.0,2565.9,2565.6,0.8161]
[1750407839758,10.0,2566.0,2565.7,3.89748866]
[1750407839947,10.0,2566.0,2565.8,3.93684957]
[1750407840545,10.0,2566.1,2565.8,0.0395]
[1750407840782,0.36456659,2566.0,2565.8,0.0395]
[1750407840984,0.36456659,2565.9,2565.8,0.0395]
[1750407841295,0.36456659,2565.9,2565.8,3.93683515]
[1750407841736,8.0,2566.2,2566.0,3.89711613]
[1750407841938,8.0,2566.2,2566.1,3.89696426]
[1750407842241,8.36459044,2566.2,2566.1,3.93646426]
[1750407842783,0.36459044,2566.2,2566.1,3.93646426]
[1750407842936,10.0,2566.6,2566.5,3.8963569]
[1750407843134,8.0,2566.7,2566.6,3.93570509]
[1750407843344,8.36449443,2566.7,2566.6,11.32370509]
[1750407843539,0.822,2567.6,2567.3,3.8951084]
[1750407843774,0.36444683,2567.5,2567.4,3.89499104]
[1750407844356,0.36444683,2567.5,2567.3,3.89511035]
[1750407844612,0.36366195,2567.4,2567.2,3.89515986]
[1750407844746,0.36366196,2567.4,2567.3,3.89513428]
[1750407845389,0.36366077,2567.4,2567.3,3.89513428]
[1750407846340,8.0,2567.5,2567.4,3.89499104]
[1750407846543,0.36309347,2567.5,2567.4,3.89499104]
[1750407846868,0.36309347,2567.7,2567.6,3.89468764]
[1750407847470,8.0,2567.9,2567.6,3.89468764]
[1750407847471,10.36309347,2567.8,2567.7,3.89453596]
[1750407847638,0.36310234,2567.8,2567.7,3.89453596]
[1750407847841,12.1104,2568.0,2567.7,3.89453596]
[1750407848040,12.1671,2568.0,2567.8,3.8943803]
[1750407848257,12.1671,2568.0,2567.7,3.89448975]
[1750407848543,20.1671,2568.0,2567.6,3.89461722]
[1750407848847,20.1671,2568.0,2567.8,3.89434115]
[1750407849193,20.1671,2568.0,2567.5,3.8946902]
[1750407849396,20.1671,2568.0,2567.4,7.3284]
[1750407849555,20.1671,2568.0,2567.6,3.89461918]
[1750407850660,20.1671,2568.0,2567.7,3.89451251]
[1750407851388,20.1671,2568.0,2567.6,3.89461123]
[1750407851585,20.1671,2568.0,2567.7,3.89449599]
[1750407851766,20.1671,2568.0,2567.6,3.89461675]
[1750407851969,20.1671,2568.0,2567.5,3.89480486]
[1750407852278,20.1671,2568.0,2567.6,3.89461038]
[1750407852702,10.58672325,2567.8,2567.2,0.7583]
[1750407852868,0.0567,2567.6,2567.4,3.89495549]
[1750407853070,10.0567,2567.9,2567.6,3.89468764]
[1750407853324,10.7635,2567.9,2567.5,3.89478647]
[1750407853617,0.0567,2567.7,2567.4,3.89492619]
[1750407853968,0.0567,2567.7,2567.4,3.89484288]
[1750407854395,8.0,2567.8,2567.5,3.89481029]
[1750407854567,14.65781453,2567.9,2567.4,4.70202697]
[1750407854785,0.0567,2567.8,2567.4,4.70202697]
[1750407855091,0.0567,2567.8,2567.4,3.89492697]
[1750407855469,3.9510874,2567.8,2567.4,3.89492697]
[1750407855705,0.0567,2567.8,2567.4,3.89492697]
[1750407855904,0.0567,2567.8,2567.5,3.89482934]
[1750407856115,3.50788473,2567.8,2567.5,3.89482934]
[1750407856667,19.2884,2568.0,2567.8,3.89438429]
[1750407857018,10.0,2567.9,2567.8,3.89430866]
[1750407857723,11.2884,2568.0,2567.9,3.89423264]
[1750407857922,11.2884,2568.0,2567.8,3.8943184]
[1750407858122,11.2884,2568.0,2567.0,0.7878]
[1750407858123,0.8321,2567.9,2567.0,0.7878]
[1750407858434,0.8321,2567.9,2567.6,3.89467834]
[1750407858928,0.0567,2567.8,2567.6,3.89467834]
[1750407859137,0.0567,2567.8,2567.2,3.89528474]
[1750407859431,0.0567,2567.8,2567.6,3.89459179]
[1750407859731,2.79998458,2567.8,2567.7,3.89453596]
[1750407860081,2.79998458,2567.8,2567.5,3.89483777]
[1750407860082,0.0587,2567.7,2567.5,3.89483777]
[1750407860533,0.0587,2567.7,2567.3,3.89505479]
[1750407860534,0.0587,2567.7,2567.4,3.89492193]
[1750407860745,0.0587,2567.4,2566.7,3.77083338]
[1750407860883,10.58753423,2567.2,2566.7,7.66678213]
[1750407861078,6.69221581,2567.2,2566.8,3.89590056]
[1750407861284,0.0587,2567.1,2566.8,3.89590056]
[1750407861524,0.0587,2567.0,2566.7,7.66680659]
[1750407862081,0.8468,2566.8,2566.7,7.66688667]
[1750407862309,0.8468,2566.8,2566.7,3.77083338]
[1750407862726,0.8468,2566.8,2566.7,7.66688667]
[1750407862890,0.7881,2566.8,2566.7,7.66688667]
[1750407863094,8.0,2567.0,2566.8,3.89579977]
[1750407863312,8.0587,2567.0,2566.8,3.89590151]
[1750407863632,8.0587,2567.0,2566.9,3.89574973]
[1750407863838,8.0587,2567.0,2566.8,3.89587661]
[1750407864002,0.0587,2566.9,2566.8,3.89587661]
[1750407864383,0.0587,2566.9,2566.7,7.66681997]
[1750407864583,8.0587,2566.9,2566.7,7.66681997]
[1750407864810,0.0587,2566.8,2566.7,7.66681997]
[1750407865284,8.0587,2566.9,2566.8,3.89590151]
[1750407866786,0.0587,2566.8,2566.7,7.66681315]
[1750407867195,8.0,2566.9,2566.8,3.89590151]
[1750407867420,8.36197653,2566.9,2566.8,3.89590151]
[1750407867597,8.4206826,2566.9,2566.8,3.89590151]
[1750407867793,8.3619826,2566.9,2566.8,3.89590151]
[1750407868107,8.0,2566.9,2566.8,3.89590151]
[1750407868823,8.36226472,2566.9,2566.8,3.89590151]
[1750407869386,8.36226522,2566.9,2566.8,3.89590151]
[1750407870012,8.36264634,2566.9,2566.8,3.89590151]
[1750407870886,8.36306832,2566.9,2566.8,3.89590151]
[1750407873798,8.36373619,2566.9,2566.8,3.89590151]
[1750407874324,8.0587,2566.9,2566.8,3.89590151]
[1750407874501,8.42244039,2566.9,2566.8,3.89590151]
[1750407875239,8.42244582,2566.9,2566.8,3.89590151]
[1750407875534,8.42244567,2566.9,2566.8,3.89590151]
[1750407876035,8.42242969,2566.9,2566.8,3.89590151]
[1750407876535,8.0,2566.9,2566.8,3.89590151]
[1750407876698,8.3636671,2566.9,2566.8,3.89590151]
[1750407877035,8.36366773,2566.9,2566.8,3.89590151]
[1750407877440,8.42236773,2566.9,2566.8,3.89590151]
[1750407877937,8.42237609,2566.9,2566.8,3.89590151]
[1750407878454,8.36366152,2566.9,2566.8,3.89590151]
[1750407878614,8.36366334,2566.9,2566.8,3.89590151]
[1750407879607,8.36373756,2566.9,2566.8,3.89590151]
[1750407880748,8.42243863,2566.9,2566.8,3.89590151]
[1750407881836,8.36373863,2566.9,2566.8,3.89590151]
[1750407882204,8.36386669,2566.9,2566.8,3.89590151]
[1750407882406,8.0,2566.9,2566.8,3.89590151]
[1750407882608,8.3638682,2566.9,2566.8,3.89590151]
[1750407883540,8.36386691,2566.9,2566.8,3.89590151]
[1750407885313,8.0,2566.9,2566.8,3.89590151]
[1750407885505,8.36402918,2566.9,2566.8,3.89590151]
[1750407886629,8.36402678,2566.9,2566.8,3.89590151]
[1750407887717,8.36438344,2566.9,2566.8,3.89590151]
[1750407887917,8.42308344,2566.9,2566.8,3.89590151]
[1750407888144,8.42308344,2566.9,2566.7,3.77083338]
[1750407888145,10.0587,2566.8,2566.7,3.77083338]
[1750407888365,0.0587,2566.7,2566.5,3.89627771]
[1750407888508,0.0587,2566.7,2566.6,3.89620509]
[1750407888730,1.18851534,2566.7,2566.2,0.7608]
[1750407888932,10.0,2566.5,2565.9,0.804]
[1750407889131,10.0,2566.5,2565.8,3.89734142]
[1750407889132,6.69221581,2566.2,2565.8,3.89734142]
[1750407889367,6.90342043,2566.1,2565.8,3.89734142]
[1750407889575,0.36542043,2566.0,2565.8,3.89734142]
[1750407889775,0.42412043,2565.9,2565.8,3.89734142]
[1750407890076,0.36542043,2565.9,2565.8,3.89734142]
[1750407890233,0.36542043,2565.9,2565.8,3.95524142]
[1750407890430,0.36542043,2566.0,2565.9,3.89726801]
[1750407890733,0.36542043,2566.0,2565.9,4.76756801]
[1750407891036,11.752,2566.3,2566.1,3.89696145]
[1750407891231,0.36446044,2566.2,2566.1,3.89696145]
[1750407891536,8.36446044,2566.2,2566.1,3.89696145]
[1750407891966,8.36446044,2566.2,2566.1,3.95486145]
[1750407892550,0.36446044,2566.2,2566.1,3.95486145]
[1750407894073,18.0,2566.4,2566.3,3.89666056]
[1750407894280,18.36420737,2566.4,2566.3,3.89666056]
[1750407894776,10.36420737,2566.4,2566.3,3.89666056]
[1750407895157,10.0,2566.4,2566.3,3.89666056]
[1750407895359,10.36420543,2566.4,2565.9,0.8124]
[1750407895664,0.42050543,2566.3,2566.2,3.8968124]
[1750407895973,0.42051673,2566.3,2566.1,3.89688644]
[1750407896134,0.36421673,2566.2,2566.1,3.89688644]
[1750407896535,8.36421673,2566.2,2566.1,3.89688644]
[1750407897173,8.0,2566.2,2566.1,3.89688644]
[1750407898283,8.36408507,2566.2,2566.1,3.89688644]
[1750407899269,8.36408924,2566.2,2566.1,3.89688644]
[1750407899634,0.36408924,2566.2,2566.1,3.89688644]
[1750407900367,16.534,2566.4,2566.2,3.89673834]
[1750407900572,8.36403341,2566.3,2566.1,3.89687862]
[1750407900885,8.0,2566.3,2566.2,3.8968124]
[1750407901037,8.36403083,2566.3,2566.2,3.8968124]
[1750407901486,0.0563,2566.2,2565.9,3.897133]
[1750407901687,0.0563,2566.2,2565.4,3.89789086]
[1750407901688,3.95347985,2566.0,2565.4,0.7676]
[1750407901843,3.95347985,2566.0,2565.5,3.89780728]
[1750407901844,6.95333083,2565.9,2565.5,3.89780728]
[1750407902186,6.95333083,2565.9,2564.9,0.7676]
[1750407902187,0.7947,2565.7,2564.9,0.7676]
[1750407902368,0.6063,2565.5,2564.9,0.7676]
[1750407902680,3.95448575,2565.3,2564.9,0.7676]
[1750407902984,3.95448575,2565.3,2564.4,12.2774829]
[1750407902985,0.0563,2565.0,2564.4,4.60086709]
[1750407903296,0.0563,2564.8,2564.4,4.60086709]
[1750407903463,0.3642285,2564.7,2564.4,3.83326709]
[1750407903675,0.0563,2564.6,2564.4,3.83326709]
[1750407903847,0.0563,2564.7,2564.5,3.89939429]
[1750407904157,6.532,2564.7,2564.5,3.89931961]
[1750407904353,1.15893072,2564.6,2564.4,3.8994642]
[1750407904579,0.36423072,2564.5,2564.4,3.8994642]
[1750407904795,8.0,2564.7,2564.6,3.89924354]
[1750407905088,8.0,2564.7,2564.6,11.39165935]
[1750407905685,0.8773,2565.4,2565.3,3.89817955]
[1750407905686,0.821,2565.4,2565.3,3.89817955]
[1750407905888,16.532,2565.6,2565.4,3.89794387]
[1750407906058,0.36284008,2565.5,2565.4,3.89802759]
[1750407906554,3.48590605,2565.7,2565.4,3.89802759]
[1750407906555,8.36284008,2565.6,2565.4,3.89802759]
[1750407906755,0.36284008,2565.5,2565.4,3.89802759]
[1750407906955,0.36269163,2565.5,2565.4,3.89802759]
[1750407907990,18.0,2565.6,2565.5,3.89787565]
[1750407908188,18.36268295,2565.6,2565.5,3.89787565]
[1750407908491,8.36268295,2565.6,2565.5,3.89787565]
[1750407908698,8.0,2566.0,2565.9,3.89726801]
[1750407908877,8.36265427,2566.0,2565.8,3.89734791]
[1750407909086,0.36265427,2565.9,2565.8,3.89734791]
[1750407909594,8.36265427,2565.9,2565.8,3.89734791]
[1750407909794,8.36265427,2565.9,2565.8,4.67683776]
[1750407910091,8.36265427,2565.9,2565.8,5.52383776]
[1750407910262,8.0,2565.9,2565.8,5.52383776]
[1750407910464,8.0,2566.6,2566.5,3.8963569]
[1750407910669,8.36270464,2566.6,2566.5,3.8963569]
[1750407910893,10.0,2566.5,2566.3,3.89657947]
[1750407911190,10.0,2566.5,2566.4,3.89650872]
[1750407911397,10.36268776,2566.5,2566.0,3.89708539]
[1750407911558,10.0,2566.5,2566.4,3.89650872]
[1750407911753,10.36268428,2566.5,2566.4,3.89650872]
[1750407911953,0.36272295,2566.5,2566.4,3.89650872]
[1750407912354,10.36272295,2566.5,2566.4,3.89650872]
[1750407912778,0.36272295,2566.5,2566.4,3.89650872]
[1750407912963,0.36272295,2566.5,2566.4,3.95440872]
[1750407913178,0.36272295,2566.5,2566.4,3.89650872]
[1750407913585,10.0,2566.6,2566.5,3.8963569]
[1750407913770,10.36283278,2566.6,2566.5,3.8963569]